Cogmind - Beta 16 @@@ ROGUE MODE // 2025.12.26 @ 11:56:37 Player: shapeshifter Result: Destroyed by G-50 Soldier with Heavy Laser Performance ------------- Evolutions (5) 2500 Regions Visited (13) 2600 Robots Destroyed (118) 590 Value Destroyed (4066) 4066 Prototype IDs (35) 700 Alien Tech Used (0) 0 Bonus (4573) 4573 TOTAL SCORE: 15029 Bonus ------- High Alert Combat Kills 263 Follower Combat Kills 3180 Network Hubs Disabled 200 Met Imprinter 300 Was Imprinted 300 Built Enhanced Grunts 300 Met R17 at Cetus 500 Friendly Fire -470 Cogmind --------- Core Integrity 0/1000 Matter 300/300 Energy 87/100 System Corruption 9% Temperature Cool (9) Movement Core (700) Ox13 Location -5/Upper Caves Parts ------- > --- POWER (2) -------- (None) > --- PROPULSION (6) --- (None) > --- UTILITY (6) ------ High-capacity Storage Unit Enhanced Optical Array Improved Signal Interpreter > --- WEAPON (3) ------- (None) > --- INVENTORY (20) --- Improved Cooling System Zionite Biocell (600) Matter Compressor (68) Improved Signal Interpreter Advanced Recoil Stabilizer Authchip [R/Combat] Authchip [R/Combat] Mobile Refinery Mk. CCLXVII Bomb Factory No. 2 Advanced Datajack Plasma Cutter Peak State ------------ > --- POWER ------------ Zionite Light DM Reactor Quantum Reactor > --- PROPULSION ------- Improved Medium Treads Improved Medium Treads Improved Medium Treads Field Propulsion Drive Nuclear Pulse Array > --- UTILITY ---------- Improved Cooling System High-capacity Storage Unit Enhanced Optical Array Improved Sensor Array Improved Signal Interpreter Matter Filter > --- WEAPON ----------- Mass Driver Enhanced Gauss Cannon Hypervelocity Gauss Cannon > --- INVENTORY -------- Zionite Heavy DM Reactor Improved Cooling System Zionite Biocell Matter Compressor Improved Sensor Array Improved Signal Interpreter Advanced Recoil Stabilizer Phase Shifter Authchip [R/Combat] Authchip [R/Combat] Mobile Refinery Mk. CCLXVII Bomb Drone Bay Bomb Factory No. 2 Advanced Variable Charge Gun Long-range Proton Cannon Advanced KE Penetrator Advanced Datajack Plasma Cutter [Rating: 99] Favorites ----------- Power Cooled Ion Engine Engine Cooled Ion Engine Power Core Light Fission Core Reactor Zionite Light DM Reactor Propulsion Light Treads Treads Light Treads Wheel Armored Wheel Flight Unit Field Propulsion Drive Utility High-capacity Storage Unit Device Cooling System Storage High-capacity Storage Unit Processor Advanced Visual Processing Unit Protection Hardened Light Armor Plating Weapon Advanced Beam Cannon Energy Gun Advanced Variable Charge Gun Energy Cannon Advanced Beam Cannon Ballistic Gun Light Assault Rifle Ballistic Cannon Gauss Cannon Launcher Rocket Launcher Special Weapon Plasma Cutter Piercing Weapon Makeshift Spear Special Melee Weapon Datajack Build | -11 -10 -10 -9 -9 -7 -6 -6 -6 -6 -6 -6 -5 -5 ------- Run | Yrd Mat Min Mat Min Zio Pro Fac Ext Cet Arc Hub Fac Upp Slots Evolved 10 | . . . 2 . . . 6 . . . . 2 . Power 1 | . . . . . . . 1 . . . . . . Propulsion 4 | . . . 1 . . . 1 . . . . 2 . Utility 4 | . . . 1 . . . 3 . . . . . . Weapon 1 | . . . . . . . 1 . . . . . . Parts Attached 118 | 5 6 3 23 4 9 4 19 7 3 2 7 25 1 Power 17 | 1 1 . 2 1 . . 4 1 . 1 2 4 . Engine 10 | 1 1 . 2 1 . . 3 1 . . . 1 . Core 3 | . . . . . . . 1 . . 1 . 1 . Reactor 4 | . . . . . . . . . . . 2 2 . Propulsion 27 | 2 . 1 8 . . 2 4 2 . . 1 7 . Treads 19 | 2 . 1 7 . . 2 4 2 . . 1 . . Leg . | . . . . . . . . . . . . . . Wheel 6 | . . . 1 . . . . . . . . 5 . Hover . | . . . . . . . . . . . . . . Flight 2 | . . . . . . . . . . . . 2 . Utility 42 | . 3 2 10 . 6 2 7 2 . 1 4 5 . Device 23 | . . 1 4 . 4 2 5 . . 1 2 4 . Storage 5 | . 2 . 2 . 1 . . . . . . . . Processor 8 | . 1 1 1 . 1 . 1 . . . 2 1 . Hackware . | . . . . . . . . . . . . . . Protection 6 | . . . 3 . . . 1 2 . . . . . Artifact . | . . . . . . . . . . . . . . Weapon 32 | 2 2 . 3 3 3 . 4 2 3 . . 9 1 Energy Gun 3 | . . . . . . . . . 1 . . 2 . Energy Cannon 8 | . 1 . 3 2 . . . . . . . 1 1 Ballistic Gun 8 | 2 . . . . . . 2 . 1 . . 3 . Ballistic Cannon 9 | . 1 . . . 1 . 2 1 1 . . 3 . Launcher 1 | . . . . 1 . . . . . . . . . Special Weapon 1 | . . . . . . . . 1 . . . . . Impact Weapon . | . . . . . . . . . . . . . . Slashing Weapon . | . . . . . . . . . . . . . . Piercing Weapon 1 | . . . . . 1 . . . . . . . . Special Melee Weapon 1 | . . . . . 1 . . . . . . . . Unidentified Prototypes 9 | . . . 2 . 3 . 1 . 2 . 1 . . Corrupted Parts 1 | . . . . . . . 1 . . . . . . System Corruption 4 | . . . . . . . 4 . . . . . . Parts Lost 47 | . . 2 4 . . 1 2 1 . . 4 21 12 Power 7 | . . . 1 . . . 2 . . . . 2 2 Propulsion 16 | . . 1 2 . . 1 . . . . . 7 5 Utility 11 | . . . 1 . . . . 1 . . 3 5 1 Weapon 13 | . . 1 . . . . . . . . 1 7 4 Highest Loss Streak 8 | . . 1 2 . . 1 1 1 . . 2 7 8 To Critical Strikes 2 | . . . 1 . . . . . . . . . 1 Average Backups 16 | 4 7 9 14 18 19 22 16 17 17 18 18 16 11 Power . | . . . 1 . . . . 1 1 2 2 1 . Propulsion . | 1 2 1 1 2 . . . . . . . . . Utility 10 | . 1 4 6 10 14 18 11 13 11 11 10 10 9 Weapon 2 | 1 3 4 3 3 3 2 1 1 2 3 3 1 . Tool/Special . | . . . . . . . . . . . . . . Unused Backups 46 | . 1 1 9 6 4 1 9 3 3 . . 1 8 Power 2 | . . . 1 . . . 1 . . . . . . Propulsion 9 | . . 1 . 4 . . 3 . . . . 1 . Utility 24 | . . . 4 1 4 . 5 1 2 . . . 7 Weapon 10 | . 1 . 4 1 . 1 . 2 1 . . . . Tool/Special 1 | . . . . . . . . . . . . . 1 Average Slot Usage (%) 95 | . 97 92 96 100 98 99 94 97 100 99 97 83 51 Engine 9 | . 14 14 10 11 11 11 5 8 13 12 . . . Reactor 1 | . . . . . . . . . . . 10 8 . Treads 27 | . 28 25 31 33 33 32 25 26 26 26 26 17 . Device 13 | . . 3 10 11 20 22 21 14 13 13 12 12 8 Storage 9 | . 13 14 11 11 11 11 6 6 6 6 6 5 5 Processor 4 | . 12 10 . . . . 5 6 6 6 6 12 11 Protection 5 | . . . 10 11 1 . 3 8 13 11 10 . . Energy Cannon 10 | . 8 14 21 21 12 11 5 4 . . . 2 3 Ballistic Cannon 7 | . 12 9 . . 2 11 10 14 19 20 19 6 . Peak Build Rating 99 | 5 8 8 21 24 33 36 67 72 75 75 83 99 61 Average Rating 38 | 3 7 7 18 22 26 31 58 64 71 73 78 79 46 On Entrance 38 | . 5 8 7 21 24 31 32 63 71 73 75 71 61 Avg Prop Armor Cover (%) 2 | . . . 9 . . . . . . . . 2 . Naked Turns . | . . . . . . . . . . . . . . Heaviest Build 116 | 5 19 19 63 67 105 105 103 106 106 110 116 114 90 Greatest Support 148 | 40 40 40 60 60 60 68 106 118 118 118 120 148 68 Greatest Overweight (x) 27 | . . . 1 1 1 2 1 . . . . 27 13 Average Overweight (x) . | . . . . 1 . 1 . . . . . . 4 Largest Inventory Capacity 25 | 5 10 10 20 20 25 25 25 20 20 20 20 20 20 Average Capacity 18 | 5 9 10 16 20 21 25 20 20 20 20 20 20 20 Most Carried 25 | 5 10 10 20 20 25 25 24 20 20 20 20 20 14 Average Carried 17 | 4 7 9 14 19 21 24 19 19 19 20 19 18 12 Final Capacity 25 | 5 10 10 20 20 25 25 20 20 20 20 20 20 20 Final Carried 25 | 5 9 10 20 19 25 24 20 19 20 20 20 14 12 Class Distribution -------------------- 63% | Mutant 18% | Scavenger-Tank 7% | Scavenger-Skirmisher 5% | Commander-Tank Dominant Class ---------------- Mutant | -10/Materials Mutant | -10/Mines Mutant | -9/Materials Mutant | -9/Mines Mutant | -7/Zion Mutant | -6/Proximity Caves Scavenger-Tank | -6/Factory Scavenger-Tank | -6/Extension Commander-Tank | -6/Cetus Commander-Tank | -6/Archives Scavenger-Tank | -6/Hub_04(d) Scavenger-Skirmisher | -5/Factory Mutant | -5/Upper Caves Resources | -11 -10 -10 -9 -9 -7 -6 -6 -6 -6 -6 -6 -5 -5 ----------- Run | Yrd Mat Min Mat Min Zio Pro Fac Ext Cet Arc Hub Fac Upp Matter Collected 5506 | 227 136 348 275 106 249 185 643 691 358 298 898 882 210 Remotely . | . . . . . . . . . . . . . . Salvage Created 4291 | 18 273 125 1070 73 . 123 699 489 129 144 138 1010 . Parts 234 | 2 23 14 56 11 . 5 39 14 7 17 9 37 . Haulers Intercepted 8 | . 1 . 4 . . . 2 1 . . . . . Recyclers Shooed 4 | . . . . . . . 1 . . . . 3 . Parts Field Recycled . | . . . . . . . . . . . . . . Retrieved Matter . | . . . . . . . . . . . . . . Parts Self-Destructed 20 | . . . . . . 19 . . . . . . 1 Prevented 5 | . . . . . . 5 . . . . . . . Parts Restored . | . . . . . . . . . . . . . . Kills | -11 -10 -10 -9 -9 -7 -6 -6 -6 -6 -6 -6 -5 -5 ------- Run | Yrd Mat Min Mat Min Zio Pro Fac Ext Cet Arc Hub Fac Upp Combat Hostiles Destroyed 73 | . 9 8 15 5 . 4 12 9 1 . 2 8 . Guns 9 | . 3 . . . . . 1 . . . . 5 . Cannons 59 | . 6 8 14 5 . 4 9 9 1 . 1 2 . AOE 3 | . . . . . . . 2 . . . 1 . . Classes Destroyed 18 | 1 5 2 3 . . 1 1 3 . . . 2 . Worker 4 | . . . 1 . . . 2 . . . . 1 . Builder 1 | . . . . . . . . 1 . . . . . Tunneler 1 | 1 . . . . . . . . . . . . . Hauler 8 | . 1 . 4 . . . 2 1 . . . . . Recycler 4 | . . . 1 . . . . . . . . 3 . Mechanic 1 | . . . . . . . . . . . . 1 . Operator 11 | . 2 . 2 . . . . . . 5 1 1 . Watcher 13 | . 3 . 3 . . . 1 . 2 . 2 2 . Swarmer 23 | . 6 5 2 5 . 2 2 1 . . . . . Grunt 23 | . 3 . 5 . . 1 6 4 . . 2 2 . Brawler 2 | . . . 1 . . . 1 . . . . . . Sentry 14 | . . 2 7 . . . . 2 . . . 3 . Hunter 1 | . . . . . . . . 1 . . . . . Programmer 5 | . . . . . . 1 2 . . . . 2 . Heavy 1 | . . . . . . . . . . . . 1 . Behemoth 2 | . . . . . . . 1 1 . . . . . Cetus Guard 1 | . . . . . . . . . 1 . . . . Assembled 1 | . . 1 . . . . . . . . . . . Fireman 3 | . . . . . . . . 1 1 1 . . . Best Kill Streak 5 | 1 4 2 4 3 . 2 5 4 2 2 2 3 . Combat Bots Only 4 | . 3 2 3 3 . 2 4 4 1 . 1 2 . Max Kills in Single Turn 3 | 1 1 1 1 1 . 1 3 1 2 1 1 2 . Gunslinging . | . . . . . . . . . . . . . . Exploded 2 | . . . . . . . 2 . . . 1 . . Melee . | . . . . . . . . . . . . . . Uniques/NPCs Destroyed . | . . . . . . . . . . . . . . Combat | -11 -10 -10 -9 -9 -7 -6 -6 -6 -6 -6 -6 -5 -5 -------- Run | Yrd Mat Min Mat Min Zio Pro Fac Ext Cet Arc Hub Fac Upp Hostile Shots Fired 713 | . 45 48 85 26 . 32 25 89 1 10 162 95 95 Missed 207 | . 14 13 27 7 . 8 6 27 . 4 60 24 17 Hits 506 | . 31 35 58 19 . 24 19 62 1 6 102 71 78 Melee 9 | . . . 9 . . . . . . . . . . Projectile 497 | . 31 35 49 19 . 24 19 62 1 6 102 71 78 Critical Strikes 15 | . 1 . 1 . . . 2 . . 1 3 3 4 Damage Taken 8857 | . 325 386 878 153 . 499 440 521 97 96 1029 2703 1730 Core 1377 | . 31 67 123 16 . . . 20 24 . 89 622 385 Absorbed by Shields 520 | . . . . . . . 19 212 36 35 218 . . Ignored by Resistances 145 | . . . . . . . . 6 6 12 121 . . Core Remaining (%) 77 | 100 . 60 . . . 65 . . . . 84 . . Volleys Fired 392 | 8 40 24 68 11 . 25 42 36 6 24 29 68 11 Largest 3 | 2 2 2 2 2 . 2 3 3 3 3 3 3 3 Hottest 196 | 40 90 90 136 136 . 105 149 149 132 136 136 196 162 Shots Fired 837 | 16 57 46 123 21 . 41 94 108 18 72 75 141 25 Gun 122 | 16 8 . . . . . 5 . . . . 69 24 Cannon 715 | . 49 46 123 21 . 41 89 108 18 72 75 72 1 Launcher . | . . . . . . . . . . . . . . Special . | . . . . . . . . . . . . . . Kinetic 515 | 16 44 22 . . . 25 57 82 18 72 75 87 17 Thermal 296 | . 13 24 123 21 . 16 37 26 . . . 29 7 Explosive . | . . . . . . . . . . . . . . Electromagnetic 26 | . . . . . . . . . . . . 25 1 Robot Hit Streak 10 | 8 4 6 10 3 . 8 10 9 3 4 2 8 2 Robot Miss Streak 11 | 3 4 4 3 4 . 2 3 10 3 7 11 3 10 Penetration Max 1 | . . . . . . . . . 1 1 1 1 . Secondary Targets . | . . . . . . . . . . . . . . Shots Hit Robots 451 | 10 29 24 67 8 1 23 57 80 9 26 16 93 8 Core Hits 177 | 2 16 9 29 5 . 8 31 19 5 9 9 30 5 Critical Kills 14 | . . . . . . . . 1 . 4 2 7 . Critical Parts Destroyed 26 | . . . . . . . . 2 5 6 10 3 . Critical Strikes 60 | . . 2 . . . 2 3 11 5 12 15 10 . Destroy 40 | . . . . . . . . 3 5 10 12 10 . Blast 20 | . . 2 . . . 2 3 8 . 2 3 . . Melee Attacks 21 | . . . . . 2 . 1 18 . . . . . Impact . | . . . . . . . . . . . . . . Slashing . | . . . . . . . . . . . . . . Piercing 1 | . . . . . 1 . . . . . . . . Sneak Attacks 20 | . . . . . 1 . 1 18 . . . . . Combat Hostiles . | . . . . . . . . . . . . . . Follow-up Attacks . | . . . . . . . . . . . . . . Damage Inflicted 12111 | 80 477 437 1416 185 . 642 1905 1857 364 738 995 2766 249 Guns 1898 | 80 35 . . . . . 33 . . . . 1504 246 Cannons 9565 | . 442 437 1391 185 . 642 1501 1835 364 738 768 1262 . Explosions 578 | . . . . . . . 371 . . . 207 . . Melee . | . . . . . . . . . . . . . . Ramming 70 | . . . 25 . . . . 22 . . 20 . 3 Kinetic 7025 | 80 408 262 . . . 337 803 1425 364 738 768 1715 125 Thermal 4019 | . 69 175 1391 185 . 305 731 410 . . . 632 121 Explosive 371 | . . . . . . . 371 . . . . . . Electromagnetic 626 | . . . . . . . . . . . 207 419 . Impact . | . . . . . . . . . . . . . . Slashing . | . . . . . . . . . . . . . . Piercing . | . . . . . . . . . . . . . . Highest Corruption 9 | . . . 6 6 6 1 5 1 1 1 1 7 9 Average Corruption 4 | . . . 5 6 6 1 4 1 1 1 1 6 7 Corruption Purged 7 | . . . . . . 1 5 . . 1 . . . Corruption Blocked . | . . . . . . . . . . . . . . Effects 122 | . . . 38 46 3 2 4 2 3 3 . 10 11 Message Errors 32 | . . . 12 12 1 . . 1 1 1 . 2 2 Matter Fused 29 | . . . 7 13 2 . . 1 1 . . 2 3 Heat Flow Errors 11 | . . . 1 4 . 1 2 . . . . 3 . Energy Discharges 16 | . . . 6 8 . 1 . . . . . 1 . Parts Rejected 1 | . . . . . . . . . . . . 1 . Parts Fused 2 | . . . . 1 . . . . 1 . . . . Data Loss (minor) 19 | . . . 8 7 . . 1 . . . . . 3 Data Loss (major) 3 | . . . 2 . . . . . . . . . 1 Misfires 1 | . . . . . . . . . . 1 . . . Alerts 4 | . . . 2 . . . . . . . . . 2 Weapon Failures 4 | . . . . 1 . . 1 . . 1 . 1 . Overload Shots . | . . . . . . . . . . . . . . Overflow Damage 172 | . . . . . . 11 7 66 25 36 19 8 . Projectiles 152 | . . . . . . 11 7 64 25 36 1 8 . Explosions 18 | . . . . . . . . . . . 18 . . Melee 2 | . . . . . . . . 2 . . . . . Knockbacks 39 | . 4 4 . . . 1 2 8 . 9 9 2 . Impact . | . . . . . . . . . . . . . . Kinetic 36 | . 4 3 . . . 1 2 8 . 9 7 2 . Secondary 3 | . . 1 . . . . . . . . 2 . . Self-Inflicted Damage 99 | . . . . . . . . . . . 98 . 1 Shots 1 | . . . . . . . . . . . 1 . . Rammed 13 | . . . 9 . . . . 1 . . 2 . 1 Targets Rammed 13 | . . . 9 . . . . 1 . . 2 . 1 Kicked . | . . . . . . . . . . . . . . Crushed . | . . . . . . . . . . . . . . Highest Temperature 439 | . 192 364 215 190 . 218 424 193 6 36 143 439 404 Average Temperature 75 | . 51 113 40 40 . 92 59 48 4 10 45 129 238 Received Heat Transfer 1331 | . 72 54 225 . . 72 96 120 12 18 377 108 177 Effects 8 | . . . . . . . 1 . . . . 4 3 Shutdowns 2 | . . . . . . . . . . . . 2 . Energy Bleed 1 | . . . . . . . . . . . . 1 . Interference 3 | . . . . . . . . . . . . 1 2 Matter Decay 1 | . . . . . . . . . . . . . 1 Damage (major) 1 | . . . . . . . 1 . . . . . . Siege Activations . | . . . . . . . . . . . . . . Martial Activations . | . . . . . . . . . . . . . . Shielding Activations . | . . . . . . . . . . . . . . Robots Disrupted . | . . . . . . . . . . . . . . Combat Hostiles . | . . . . . . . . . . . . . . Robots Corrupted 2 | . . . . . . . . 1 . . . 1 . Combat Hostiles 1 | . . . . . . . . . . . . 1 . Parts Fried 3 | . . . . . . . . 3 . . . . . Impact Corruptions 1 | . . . . . . . . 1 . . . . . Robots Melted 1 | . . . 1 . . . . . . . . . . Combat Hostiles 1 | . . . 1 . . . . . . . . . . Parts Melted 11 | . . 1 7 . . 1 1 1 . . . . . Heat Transferred 6438 | . 148 370 2627 333 . 407 999 555 . . . 814 185 Parts Sabotaged . | . . . . . . . . . . . . . . Parts Stolen . | . . . . . . . . . . . . . . Parts Stripped . | . . . . . . . . . . . . . . Power Chain Reactions . | . . . . . . . . . . . . . . Alert | -11 -10 -10 -9 -9 -7 -6 -6 -6 -6 -6 -6 -5 -5 ------- Run | Yrd Mat Min Mat Min Zio Pro Fac Ext Cet Arc Hub Fac Upp Maximum Alert Level 4 | . . . . . . . 3 4 3 2 4 2 . Low Security (%) 57 | 100 100 100 100 100 . . 48 . . . 12 . . Level 1 12 | . . . . . . . 15 25 . 31 6 51 . Level 2 16 | . . . . . . . 18 47 3 68 9 48 . Level 3 10 | . . . . . . . 17 8 96 . 67 . . Level 4 2 | . . . . . . . . 18 . . 4 . . Level 5 . | . . . . . . . . . . . . . . High Security . | . . . . . . . . . . . . . . Max Security . | . . . . . . . . . . . . . . Peak Influence 1315 | 5 62 65 110 84 . . 825 1315 803 473 1183 601 . Initial 776 | . . . . 33 . . 54 383 776 280 123 575 . Average 264 | . 18 7 43 18 . . 358 628 741 414 707 410 . Influence Increases 7261 | 5 301 165 539 226 . 410 1200 1628 367 274 1634 512 . Destroy 0b10 Robot/C 3060 | . 180 140 300 180 . 280 460 640 160 80 480 160 . Destroy 0b10 Robot/NC 265 | 5 30 . 55 . . . 35 30 10 25 35 40 . Destroy Leader 602 | . 48 10 124 30 . 20 106 104 . . 96 64 . Allied During Kill 1670 | . . . . 15 . 110 59 756 170 105 455 . . Successful Hack 127 | . 28 . 28 . . . . 35 . . . 36 . Disable Machine 780 | . 15 . 30 . . . 405 15 15 45 180 75 . Anti-Garrison Action 200 | . . . . . . . . . . . 200 . . Destroy Structure 437 | . . . 2 1 . . 105 33 12 19 143 122 . Lose Combat Pursuer 120 | . . 15 . . . . 30 15 . . 45 15 . Influence Decreases 7261 | 5 301 165 454 311 . 323 503 1025 1053 621 813 1322 365 Entered New Map 2485 | . . . . 52 . . 33 401 611 421 231 600 136 Time Decay 3672 | 5 301 161 454 239 . 253 410 514 222 180 302 502 129 Lost Part 374 | . . 4 . . . 10 20 10 . . 40 210 80 Lost Ally 730 | . . . . 20 . 60 40 100 220 20 240 10 20 Squads Dispatched 28 | . 1 . 1 1 . . 4 6 . . 8 7 . Investigation 6 | . . . . 1 . . 1 2 . . 2 . . Extermination 4 | . . . . . . . 1 . . . 1 2 . Reinforcement 14 | . 1 . 1 . . . 2 3 . . 3 4 . Assault 3 | . . . . . . . . 1 . . 1 1 . Garrison 1 | . . . . . . . . . . . 1 . . Intercept . | . . . . . . . . . . . . . . Searches Triggered . | . . . . . . . . . . . . . . Construction Impeded 2 | . . . . . . . . 1 . . 1 . . Haulers Reinforced 1 | . . . . . . . 1 . . . . . . Active Scanning Responses . | . . . . . . . . . . . . . . Cargo Convoy Interrupts . | . . . . . . . . . . . . . . Stealth | -11 -10 -10 -9 -9 -7 -6 -6 -6 -6 -6 -6 -5 -5 --------- Run | Yrd Mat Min Mat Min Zio Pro Fac Ext Cet Arc Hub Fac Upp Distress Signals 10 | . 1 . 2 . . . 1 2 2 . 1 1 . Communications Jammed . | . . . . . . . . . . . . . . Distress Signals . | . . . . . . . . . . . . . . Times Spotted 212 | . 17 9 27 10 . 13 23 26 10 15 34 23 5 Peak Tracking Total 8 | . 3 3 3 3 . 5 6 6 5 1 8 2 2 Tactical Retreats 8 | . . 2 . . . . 1 1 . . 3 1 . Traps | -11 -10 -10 -9 -9 -7 -6 -6 -6 -6 -6 -6 -5 -5 ------- Run | Yrd Mat Min Mat Min Zio Pro Fac Ext Cet Arc Hub Fac Upp Traps Triggered 11 | . 1 . 2 . . . . . . . . 8 . Indirectly . | . . . . . . . . . . . . . . Trap Hack Attempts . | . . . . . . . . . . . . . . Triggered . | . . . . . . . . . . . . . . Disarmed . | . . . . . . . . . . . . . . Reprogrammed . | . . . . . . . . . . . . . . Reused . | . . . . . . . . . . . . . . Traps Extracted . | . . . . . . . . . . . . . . Installed . | . . . . . . . . . . . . . . Triggered . | . . . . . . . . . . . . . . Machines | -11 -10 -10 -9 -9 -7 -6 -6 -6 -6 -6 -6 -5 -5 ---------- Run | Yrd Mat Min Mat Min Zio Pro Fac Ext Cet Arc Hub Fac Upp Machines Disabled 60 | . 1 2 2 . . 4 27 2 2 3 12 5 . Max in Single Turn 14 | . 1 1 1 . . . 14 1 1 1 8 2 . Garrison Access 1 | . . . . . . . . . . . 1 . . Network Hub 1 | . . . . . . . . . . . 1 . . Machines Repaired . | . . . . . . . . . . . . . . Machines Dismantled 2 | . . . . . . . . 1 1 . . . . Machines Sabotaged . | . . . . . . . . . . . . . . Overloaded Fab Kills . | . . . . . . . . . . . . . . Hacking | -11 -10 -10 -9 -9 -7 -6 -6 -6 -6 -6 -6 -5 -5 --------- Run | Yrd Mat Min Mat Min Zio Pro Fac Ext Cet Arc Hub Fac Upp Machines Accessed 30 | . 7 . 7 2 1 . 1 10 . . 1 1 . Terminals 20 | . 6 . 6 . . . . 8 . . . . . Fabricators 1 | . . . . . . . 1 . . . . . . Repair Stations . | . . . . . . . . . . . . . . Recycling Units 3 | . 1 . . . . . . 2 . . . . . Scanalyzers 2 | . . . 1 . . . . . . . . 1 . Garrison Access 1 | . . . . . . . . . . . 1 . . Total Hacks 75 | . 20 . 18 2 4 . 3 21 . . 1 6 . Successful 40 | . 11 . 10 2 4 . 1 8 . . 1 3 . Failed 34 | . 9 . 8 . . . 2 13 . . . 2 . Catastrophic 7 | . 2 . 2 . . . . 3 . . . . . Database Lockouts 1 | . . . . . . . . . . . . 1 . Manual 90 | . 13 . 17 . . . 11 16 1 . 25 7 . Terminals 51 | . 18 . 17 . . . . 16 . . . . . Fabricators 3 | . . . . . . . 3 . . . . . . Repair Stations . | . . . . . . . . . . . . . . Recycling Units 7 | . 2 . . . . . . 5 . . . . . Scanalyzers 7 | . . . 1 . . . . . . . . 6 . Garrison Access 1 | . . . . . . . . . . . 1 . . Terminal Hacks 16 | . 1 . 2 2 4 . . 7 . . . . . Part Schematic 4 | . . . . . 4 . . . . . . . . Open Door 9 | . . . . 2 . . . 7 . . . . . Branch Access Points 1 | . . . 1 . . . . . . . . . . Zone Layout 2 | . 1 . 1 . . . . . . . . . . Fabricator Hacks 1 | . . . . . . . 1 . . . . . . Network Status 1 | . . . . . . . 1 . . . . . . Repair Station Hacks . | . . . . . . . . . . . . . . Recycling Unit Hacks 3 | . 2 . . . . . . 1 . . . . . Retrieve Components 3 | . 2 . . . . . . 1 . . . . . Scanalyzer 3 | . . . . . . . . . . . . 3 . Retrieve Study 3 | . . . . . . . . . . . . 3 . Garrison Access Hacks . | . . . . . . . . . . . . . . Unauthorized Hacks 17 | . 8 . 8 . . . . . . . 1 . . Terminals 16 | . 8 . 8 . . . . . . . . . . Botnet 6 | . 3 . 3 . . . . . . . . . . Skim 10 | . 5 . 5 . . . . . . . . . . Fabricators . | . . . . . . . . . . . . . . Repair Stations . | . . . . . . . . . . . . . . Recycling Units . | . . . . . . . . . . . . . . Scanalyzers . | . . . . . . . . . . . . . . Garrison Access 1 | . . . . . . . . . . . 1 . . Jam 1 | . . . . . . . . . . . 1 . . Data Cores Recovered 2 | . . . 1 . . . . . . . . 1 . Used . | . . . . . . . . . . . . . . Hacking Detections 20 | . 5 . 6 . . . . 8 . . . 1 . Full Trace Events 2 | . . . . . . . . 2 . . . . . Feedback Events . | . . . . . . . . . . . . . . Feedback Blocked . | . . . . . . . . . . . . . . Robot Schematics Acquired 3 | . . . . . 3 . . . . . . . . Robots Built . | . . . . . . . . . . . . . . Authchips . | . . . . . . . . . . . . . . Time . | . . . . . . . . . . . . . . Total Robot Build Rating . | . . . . . . . . . . . . . . Part Schematics Acquired 39 | . . . . . 19 . . 8 . . 12 . . Parts Built . | . . . . . . . . . . . . . . Authchips . | . . . . . . . . . . . . . . Time . | . . . . . . . . . . . . . . Total Part Build Rating . | . . . . . . . . . . . . . . Part Studies Acquired 3 | . . . . . . . . . . . . 3 . Parts Repaired . | . . . . . . . . . . . . . . Time . | . . . . . . . . . . . . . . Parts Recycled . | . . . . . . . . . . . . . . Recycled Matter . | . . . . . . . . . . . . . . Retrieved Matter . | . . . . . . . . . . . . . . Retrieved Components 2 | . . . . . . . . 2 . . . . . Parts Scanalyzed . | . . . . . . . . . . . . . . Part Schematics Acquired . | . . . . . . . . . . . . . . Parts Damaged . | . . . . . . . . . . . . . . Bothacking | -11 -10 -10 -9 -9 -7 -6 -6 -6 -6 -6 -6 -5 -5 ------------ Run | Yrd Mat Min Mat Min Zio Pro Fac Ext Cet Arc Hub Fac Upp Used RIF Installer . | . . . . . . . . . . . . . . Robots Hacked 2 | . . . . . 1 . 1 . . . . . . Non-combat . | . . . . . . . . . . . . . . Combat 2 | . . . . . 1 . 1 . . . . . . Robot Hacks Applied 2 | . . . . . 1 . 1 . . . . . . parse_system 2 | . . . . . 1 . 1 . . . . . . Relay Couplers Released . | . . . . . . . . . . . . . . Fabnet Peak Effective % . | . . . . . . . . . . . . . . Robots Rewired 8 | . . . . . . . . 8 . . . . . Allies Hacked 1 | . . . . . . 1 . . . . . . . Hacks Repelled . | . . . . . . . . . . . . . . Allies | -11 -10 -10 -9 -9 -7 -6 -6 -6 -6 -6 -6 -5 -5 -------- Run | Yrd Mat Min Mat Min Zio Pro Fac Ext Cet Arc Hub Fac Upp Total Allies 47 | . . . . 4 4 . 2 28 5 . 3 1 . Largest Group 23 | . . . . 3 7 7 2 23 22 15 16 1 . Highest-Rated Group 914 | . . . . 40 193 193 170 860 834 763 914 31 . Highest-Rated Ally 159 | . . . . 31 40 40 85 159 159 96 96 31 . Zionite Dispatches 6 | . . . . . . . 1 3 . . 1 1 . Heavy 1 | . . . . . . . 1 . . . . . . Light 1 | . . . . . . . . . . . 1 . . Fire 2 | . . . . . . . . 2 . . . . . Hacker 1 | . . . . . . . . 1 . . . . . Kinetic Resupply 1 | . . . . . . . . . . . . 1 . Total Orders 4 | . . . . . 2 . . . . . . 2 . STAY 2 | . . . . . 1 . . . . . . 1 . FOLLOW 1 | . . . . . 1 . . . . . . . . DROP 1 | . . . . . . . . . . . . 1 . Ally Attacks 460 | . . . . 16 . 45 23 123 60 32 145 . 16 Total Damage 12254 | . . . . 105 . 1177 1628 3201 1604 458 4081 . . Kills 97 | . . . . 4 . 10 14 28 7 4 30 . . Allies Corrupted . | . . . . . . . . . . . . . . Allies Melted 1 | . . . . . . . . . . . 1 . . Intel | -11 -10 -10 -9 -9 -7 -6 -6 -6 -6 -6 -6 -5 -5 ------- Run | Yrd Mat Min Mat Min Zio Pro Fac Ext Cet Arc Hub Fac Upp Active Infowar (turns) 5616 | . . 2 3 . . . 988 1400 465 361 673 1355 369 Optics 5546 | . . 2 1 . . . 988 1400 465 361 673 1287 369 Sensors 1157 | . . . . . . . . . . . 14 1143 . Terrain 134 | . . . 1 . . . 53 . . . . 80 . Structural 425 | . . . 1 . . . 424 . . . . . . Robot Analysis Total . | . . . . . . . . . . . . . . Derelict Logs Recovered 7 | . . 2 . 2 1 2 . . . . . . . Drone Launches 16 | . . . . . . . . . . . . . 16 Drone Recoveries . | . . . . . . . . . . . . . . Zionite Intel Received 9 | . . . . . . . 1 1 . . 6 1 . Emergency Access 1 | . . . . . . . . . . . 1 . . Prototype Stockpiles 1 | . . . . . . . . . . . 1 . . Prototype Schematics 2 | . . . . . . . . 1 . . 1 . . Trap Installations 1 | . . . . . . . . . . . 1 . . Active Terminals 2 | . . . . . . . . . . . 1 1 . Depthwide Sectors/0 1 | . . . . . . . 1 . . . . . . Depthwide Sectors/-1 1 | . . . . . . . . . . . 1 . . Exploration | -11 -10 -10 -9 -9 -7 -6 -6 -6 -6 -6 -6 -5 -5 ------------- Run | Yrd Mat Min Mat Min Zio Pro Fac Ext Cet Arc Hub Fac Upp Turns Passed 14971 | 89 975 967 2236 1502 2259 1327 993 1400 465 361 673 1355 369 Spaces Moved 6813 | 44 512 553 936 593 1098 515 468 645 202 122 342 578 205 Core 18 | 14 . . . . . . . . . . . 3 1 Treads 6469 | 30 512 553 917 593 1098 515 468 645 202 122 342 472 . Legs . | . . . . . . . . . . . . . . Wheels 305 | . . . 19 . . . . . . . . 82 204 Hover . | . . . . . . . . . . . . . . Flight 21 | . . . . . . . . . . . . 21 . Fastest Speed 50 | 50 160 160 115 240 160 240 160 160 160 160 160 94 109 Average Speed 183 | 125 160 160 182 240 198 240 166 160 160 160 160 173 154 Slowest Speed 1400 | 160 160 160 240 240 240 320 243 160 160 160 160 1400 700 Overloaded Moves . | . . . . . . . . . . . . . . Propulsion Burnouts . | . . . . . . . . . . . . . . Robots Hopped 1 | . . . . . 1 . . . . . . . . Potential Cave-ins . | . . . . . . . . . . . . . . Cave-ins Triggered . | . . . . . . . . . . . . . . Exploration Rate (%) 62 | 4 82 94 74 97 90 72 17 86 66 84 49 16 44 Regions Visited 13 Branch Regions 9 Pre-discovered Areas 20 | . 1 1 1 1 1 . 10 . . . 5 . . Known Exits Taken 4 | . . 1 1 . . . . . . . 1 1 . Unknown Exits Taken 9 | 1 1 . . 1 1 1 1 1 1 1 . . . Scrap Searched 10 | . . 1 . 1 4 3 . . . . . . 1 Spaces Dug 12 | . . . . . . 1 2 . . . 9 . . Terrain Destroyed 362 | . . . . 1 . 1 30 30 5 22 188 81 4 Melee . | . . . . . . . . . . . . . . Projectile 142 | . . . . 1 . 1 14 30 5 22 31 35 3 AOE 219 | . . . . . . . 16 . . . 157 46 . Terrain Rammed . | . . . . . . . . . . . . . . Walls Destroyed . | . . . . . . . . . . . . . . Machines Disabled . | . . . . . . . . . . . . . . Actions | -11 -10 -10 -9 -9 -7 -6 -6 -6 -6 -6 -6 -5 -5 --------- Run | Yrd Mat Min Mat Min Zio Pro Fac Ext Cet Arc Hub Fac Upp Total 8537 | 64 614 590 1342 654 1180 562 621 906 314 236 409 805 240 Wait 817 | . 43 . 246 27 34 14 39 142 83 83 19 68 19 Move 6798 | 43 511 552 935 592 1095 514 467 644 201 121 341 577 205 Hop 1 | . . . . . 1 . . . . . . . . Pick Up 148 | 8 10 5 36 8 15 1 19 6 5 1 3 30 1 Fast Attach 44 | 2 . 2 1 1 3 1 9 4 1 2 5 13 . Attach 72 | 3 4 1 14 . 5 . 9 1 . . . 33 2 Detach 5 | . . . 2 . 2 . . . 1 . . . . Swap 65 | . 2 1 10 4 10 3 10 10 5 1 3 6 . Drop 120 | . 4 5 21 11 13 4 25 11 4 4 7 10 1 Fire 392 | 8 40 24 68 11 . 25 42 36 6 24 29 68 11 Melee 21 | . . . . . 2 . 1 18 . . . . . Ram 1 | . . . . . . . . . . . . . 1 Kick . | . . . . . . . . . . . . . . Crush 12 | . . . 9 . . . . 1 . . 2 . . Escape Stasis . | . . . . . . . . . . . . . . Rewire 24 | . . . . . . . . 24 . . . . . Trap . | . . . . . . . . . . . . . . Miscellaneous 17 | . . . . . . . . 9 8 . . . . Route ------- -11/Scrapyard -10/Materials (discovered 5 exits: *Mat x3 / [*Min] / Sub) -10/Mines (discovered 3 exits: *Mat x2 / *Sub) -9/Materials (discovered 5 exits: *Mat x3 / *Min x2) -9/Mines (discovered 4 exits: *Mat x2 / [*Exi] / *Zio) -7/Zion -6/Proximity Caves -6/Factory (discovered 4 exits: Fac x2 / [*Low] / *Ext) -6/Extension (discovered 2 exits: *Fac / *Cet) -6/Cetus (discovered 2 exits: *Fac / [*Arc]) -6/Archives (discovered 3 exits: *Fac / *Hub x2) -6/Hub_04(d) -5/Factory -5/Upper Caves (discovered 1 exit: *Upp) History --------- Turn | Location | Event 11 | -11/Scrapyard | Discovered new exit (range 16) 90 | -11/Scrapyard | Entered Materials 307 | -10/Materials | Build established: Mutant 556 | -10/Materials | Discovered new exit (range 10) 708 | -10/Materials | Identified exit to Subcaves 708 | -10/Materials | Identified exit to Materials 779 | -10/Materials | Learned location of Recycling (-8) 890 | -10/Materials | Learned 4 Subcaves zone layouts 930 | -10/Materials | Learned Storage stockpile data 958 | -10/Materials | Learned Storage stockpile data 1036 | -10/Materials | Discovered new exit (range 11) 1065 | -10/Materials | Entered Mines 1066 | -10/Mines | Assembled infested the area 1071 | -10/Mines | Assisted by a Guerilla fighting off Assembled 1441 | -10/Mines | Discovered exit to Subcaves (range 12) 1554 | -10/Mines | Learned location of Zion (-7) 1665 | -10/Mines | A weapon hastily lodged in a ceiling crevice suddenly fell to the ground 1757 | -10/Mines | Learned Materials stockpile data 1900 | -10/Mines | Found a hidden stash of uninstalled traps 2032 | -10/Mines | Entered Materials 2032 | -9/Materials | Evolved 2 slots: Propulsion x1, Utility x1 2693 | -9/Materials | Discovered new exit (range 16) 2900 | -9/Materials | Discovered new exit (range 16) 3290 | -9/Materials | Discovered new exit (range 16) 3924 | -9/Materials | Identified exit to Mines 3992 | -9/Materials | Learned Storage emergency access door positions 4051 | -9/Materials | Learned 2 Storage zone layouts 4098 | -9/Materials | Learned location of 1 exit from Recycling 4137 | -9/Materials | Loaded intel: 9 trap records 4166 | -9/Materials | Identified exit to Materials 4192 | -9/Materials | Loaded intel: 12 terminal locations 4239 | -9/Materials | Learned Storage security intel 4268 | -9/Materials | Entered Mines 4403 | -9/Mines | Received a Mining Laser from a helpful Derelict 4455 | -9/Mines | Deemed a non-threat by the Exiles lab entrance 4455 | -9/Mines | Discovered new exit (range 5) 4549 | -9/Mines | A Derelict revealed a hidden shortcut to a safe place 4756 | -9/Mines | Assisted by bots powering up and referring to "LRC-V3" 4798 | -9/Mines | Found the Drone Emporium 4810 | -9/Mines | Found Prototype Device 5088 | -9/Mines | Discovered exit to Materials (range 10) 5120 | -9/Mines | Met a Derelict shopkeep closing up shop 5237 | -9/Mines | Discovered exit to Materials (range 5) 5379 | -9/Mines | Received a Rocket Launcher from a helpful Derelict 5502 | -9/Mines | Learned location of 1 exit from Materials 5770 | -9/Mines | Entered Zion 5770 | -7/Zion | Accompanied by 3 allies 5828 | -7/Zion | Acquired unknown access codes intercepted by a Zionite 5858 | -7/Zion | System corruption cleaned by Quarantine Array 6015 | -7/Zion | Discovered new exit (range 12) 6067 | -7/Zion | Found Prototype Device 6069 | -7/Zion | Identified Bomb Drone Bay 6071 | -7/Zion | Identified Bomb Factory No. 2 6394 | -7/Zion | Learned Factory emergency access door positions 6468 | -7/Zion | Learned Factory terminal intel 6499 | -7/Zion | Given A8's code to call for help 6610 | -7/Zion | Found Prototype Device 6612 | -7/Zion | Identified Mobile Refinery Mk. CCLXVII 6782 | -7/Zion | Learned location of Armory (-4) 7389 | -7/Zion | Met Imprinter 7434 | -7/Zion | Imprinted 7436 | -7/Zion | Declared Zion's savior 8029 | -7/Zion | Entered Proximity Caves 8029 | -6/Proximity Caves | Accompanied by 7 allies 8604 | -6/Proximity Caves | Learned location of 1 exit from Factory 9017 | -6/Proximity Caves | Learned location of 1 exit from Factory 9096 | -6/Proximity Caves | Attracted the attention of an 0b10 base 9224 | -6/Proximity Caves | Attracted the attention of an 0b10 checkpoint 9278 | -6/Proximity Caves | Discovered new exit (range 11) 9356 | -6/Proximity Caves | Entered Factory 9356 | -6/Factory | Accompanied by 2 allies 9356 | -6/Factory | Evolved 6 slots: Power x1, Propulsion x1, Utility x3, Weapon x1 9357 | -6/Factory | Identified exit to Factory 9359 | -6/Factory | Loaded intel: 28 terminal locations 9660 | -6/Factory | Build established: Scavenger-Skirmisher 9690 | -6/Factory | Spotted B-75 Beast 9703 | -6/Factory | Destroyed B-75 Beast 9758 | -6/Factory | Retrieved Zion intel report: Depthwide Sectors/-6 9759 | -6/Factory | Zion Heavy squad teleported in 10015 | -6/Factory | Build established: Scavenger-Tank 10151 | -6/Factory | Discovered new exit (range 20) 10151 | -6/Factory | Discovered new exit (range 14) 10349 | -6/Factory | Entered Extension 10349 | -6/Extension | Accompanied by 1 ally 10403 | -6/Extension | Rescued a captive Derelict 10404 | -6/Extension | Rescued a captive Derelict 10426 | -6/Extension | Rescued a captive Derelict 10426 | -6/Extension | Rescued a captive Derelict 10446 | -6/Extension | Rescued a captive Derelict 10447 | -6/Extension | Rescued a captive Derelict 10499 | -6/Extension | Zion Hacker squad teleported in 10675 | -6/Extension | Rescued A7 10699 | -6/Extension | Rescued a captive Derelict 11091 | -6/Extension | Spotted B-75 Beast 11107 | -6/Extension | Spotted B-75 Beast 11118 | -6/Extension | Destroyed B-75 Beast 11129 | -6/Extension | Allies destroyed B-75 Beast 11160 | -6/Extension | Lost 5 allies 11232 | -6/Extension | Zion Fire squad teleported in 11235 | -6/Extension | Zion Fire squad teleported in 11315 | -6/Extension | Rescued a captive Derelict 11404 | -6/Extension | Retrieved Zion intel report: Prototype Schematics 11524 | -6/Extension | Rescued a captive Derelict 11564 | -6/Extension | Rescued a captive Derelict 11565 | -6/Extension | Rescued a captive Derelict 11651 | -6/Extension | Discovered exit to Factory (range 10) 11652 | -6/Extension | Discovered new exit (range 6) 11678 | -6/Extension | Terminal network hard line cut 11749 | -6/Extension | First assault squad dispatched 11749 | -6/Extension | Entered Cetus 11749 | -6/Cetus | Accompanied by 22 allies (A7) 11754 | -6/Cetus | Acquired a Cetus Manufacturing Module code from A7 11772 | -6/Cetus | Spotted Cetus Guard 11773 | -6/Cetus | Spotted Cetus Guard 11776 | -6/Cetus | Spotted Cetus Guard 11778 | -6/Cetus | Spotted Cetus Guard 11780 | -6/Cetus | Allies destroyed Cetus Guard 11789 | -6/Cetus | Allies destroyed Cetus Guard 11792 | -6/Cetus | Extracted ID and sensor layout for unrecognized location from A7's data core 11794 | -6/Cetus | Allies destroyed Cetus Guard 11803 | -6/Cetus | Allies destroyed Cetus Guard 11835 | -6/Cetus | Lost 9 allies 11900 | -6/Cetus | Started Cetus Manufacturing Module 11925 | -6/Cetus | Manufactured an Enhanced Grunt 11947 | -6/Cetus | Discovered new exit (range 19) 11950 | -6/Cetus | Manufactured an Enhanced Grunt 11975 | -6/Cetus | Manufactured an Enhanced Grunt 11977 | -6/Cetus | Spotted Cetus Guard 11977 | -6/Cetus | Spotted Cetus Guard 11981 | -6/Cetus | Spotted Cetus Guard 11981 | -6/Cetus | Spotted Cetus Guard 11987 | -6/Cetus | Allies destroyed Cetus Guard 11994 | -6/Cetus | Destroyed Cetus Guard 11998 | -6/Cetus | Allies destroyed Cetus Guard 12000 | -6/Cetus | Manufactured an Enhanced Grunt 12001 | -6/Cetus | Allies destroyed Cetus Guard 12001 | -6/Cetus | Discovered exit to Factory (range 20) 12016 | -6/Cetus | Scared off Revision 17 12025 | -6/Cetus | Manufactured an Enhanced Grunt 12030 | -6/Cetus | Lost 3 allies 12214 | -6/Cetus | Entered Archives 12214 | -6/Archives | Accompanied by 15 allies 12238 | -6/Archives | Build established: Commander-Tank 12279 | -6/Archives | Discovered exit to Factory (range 19) 12340 | -6/Archives | Discovered new exit (range 20) 12382 | -6/Archives | Discovered new exit (range 17) 12575 | -6/Archives | Entered Hub_04(d) 12575 | -6/Hub_04(d) | Accompanied by 13 allies 12599 | -6/Hub_04(d) | Zion Light squad teleported in 12633 | -6/Hub_04(d) | Retrieved Zion intel report: Depthwide Sectors/-5 12690 | -6/Hub_04(d) | Garrison activated, responded to threat 12739 | -6/Hub_04(d) | Lost 5 allies 12822 | -6/Hub_04(d) | Retrieved Zion intel report: Trap Installations 12868 | -6/Hub_04(d) | Retrieved Zion intel report: Emergency Access 12886 | -6/Hub_04(d) | Retrieved Zion intel report: Prototype Stockpiles 12925 | -6/Hub_04(d) | First assault squad dispatched 12976 | -6/Hub_04(d) | Retrieved Zion intel report: Active Terminals 13016 | -6/Hub_04(d) | Build established: Scavenger-Tank 13051 | -6/Hub_04(d) | Lost 6 allies 13152 | -6/Hub_04(d) | Retrieved Zion intel report: Prototype Schematics 13174 | -6/Hub_04(d) | Discovered exit to Factory (range 17) 13221 | -6/Hub_04(d) | Network Hub disabled 13248 | -6/Hub_04(d) | Entered Factory 13248 | -5/Factory | Evolved 2 slots: Propulsion x2 13268 | -5/Factory | Central database locked down 13509 | -5/Factory | Build established: Scavenger-Skirmisher 13706 | -5/Factory | Retrieved Zion intel report: Active Terminals 13707 | -5/Factory | Zion Kinetic Resupply teleported in 13848 | -5/Factory | First assault squad dispatched 14245 | -5/Factory | Lost 6 parts (2n2u2w) 14317 | -5/Factory | Build established: Skirmisher 14432 | -5/Factory | Lost 7 parts (3n2u2w) 14494 | -5/Factory | Core integrity fell below 50% 14514 | -5/Factory | Lost 4 parts (2p2w) 14539 | -5/Factory | Discovered new exit (range 8) 14545 | -5/Factory | Identified exit to Upper Caves 14603 | -5/Factory | Entered Upper Caves 14679 | -5/Upper Caves | Core integrity fell below 20% 14709 | -5/Upper Caves | Lost 8 parts (2p4n2w) 14710 | -5/Upper Caves | Lost 4 allies 14789 | -5/Upper Caves | Spotted B-75 Beast 14833 | -5/Upper Caves | Lost 11 allies 14927 | -5/Upper Caves | Discovered new exit (range 18) 14968 | -5/Upper Caves | Identified exit to Upper Caves 14970 | -5/Upper Caves | Build established: Mutant 14972 | -5/Upper Caves | Destroyed by G-50 Soldier with Heavy Laser Last Messages --------------- 14877_ System corrupted: Matter fused (-7). 14894_ System corrupted: Component data lost. 14917_ M9T 1M:VFTHDE&YFT9WGBQ=B6EVE5>#&V|YM0J 14927_ EXIT=FOUND 14928_ Bomb Drone suffers critical hit (Burn). 14929_ Bomb Drone detonates. 14929_ Bomb Drone destroyed. 14929_ G-50 Soldier destroyed. 14930_ Dropped Bomb Drone Bay. 14932_ System corrupted: Matter fused (-7). 14951_ Critical hit (Burn: +37). 14954_ Lrn. Proton Cannon destroyed. 14954_ Slammed into G-67 Veteran. 14954_ Destabilizing: System corrupted (+2). 14957_ Acquired 54 matter. 14960_ Adv. Heat Sink destroyed. 14960_ Wave Gun destroyed. 14961_ System corrupted: IFF burst signal emitted. 14968_ Arm. Wheel destroyed. 14968_ EXIT=IDENTIFIED: UPPER CAVES Map ----- +----------------------------------------------------+ | ?????????????????????????????????????????????????? | | ????????????????????????????????????? ??????????? | | ????????????????????????????????????? ??????????? | | ????????????????????????????????????? ??????????? | | ????????????????????????????????????? ??????????? | | ????????????????????????????????????? ??????????? | | ????????????????????????????????????? ??????????? | | ????????????????????????????????????? ??????????? | | ????????????????????????????????????? ??????????? | | ????????????????????????????????????? ??????????? | | ???????????????????????????????????## ??????????? | | ???????????????????????????????#??## #??????????? | | ??????????????????????????????? ### #??????????? | | ???????????????????????????????? #??????????? | | ???????????????????????????????? #??????????? | | ?????????????####???????????????? #??????????? | | ?????????????# ???????????????# #??????????? | | ??????????????? ??????????????# ######?????? | | ????????????????# #????????###### ###???? | | ?????????????????# ###???### #???? | | ????????????????## #### # ##? ##% #??### | | ????????????????# #??# ###! #??? # | | ?????????????????# #??# ## #????# # | | ????????????????????## #### #### # # | | ????????????????????# % g! # # # | | ????????????????????# @ g ! ! #### # | | ?????????????????# > ##! #### | | ??????????????# # # # | | ?????????????# ??# # #### | | ?????????????# ?????## #??# #### # | | ??????????????????????# #??## %!## ##??## # | | ??????????????????????###### ???# #####????### | | ???????????????????????????# #??# #??????????? | | ????????????????????????????# ##??## ##??????????? | | ????????????????????????????###????###???????????? | | ?????????????????????????????????????????????????? | | ?????????????????????????????????????????????????? | | ?????????????????????????????????????????????????? | | ?????????????????????????????????????????????????? | | ?????????????????????????????????????????????????? | | ?????????????????????????????????????????????????? | | ?????????????????????????????????????????????????? | | ?????????????????????????????????????????????????? | | ?????????????????????????????????????????????????? | | ?????????????????????????????????????????????????? | | ?????????????????????????????????????????????????? | | ?????????????????????????????????????????????????? | | ?????????????????????????????????????????????????? | | ?????????????????????????????????????????????????? | | ?????????????????????????????????????????????????? | +----------------------------------------------------+ Best States ------------- Heat Dissipation 67 Energy Generation 57 Energy Capacity 540 Matter Stores 300 Matter Capacity 300 Sight Range 22 Robot Scan Range 15 Terrain Scan Range 16 Terrain Scan Density 110 Armor Coverage 450 Resistance: TH 15 Weapon Cycling 15 Phase Shifting 5 Evasion (%) 50 Targeting Accuracy 5 Recoil Reduction 5 Matter Filtering 30 Authchip Count 5 Item Schematics ----------------- Hvy. Ion Cannon | -7/Zion | Archive Magnetic Acceleration Cannon | -7/Zion | Archive Imp. Thermal Generator | -7/Zion | Archive Armor Integrity Analyzer | -7/Zion | Archive Weapon Cycler | -7/Zion | Archive Hyp. Coil Gun | -7/Zion | Archive Power Sword | -7/Zion | Archive Flak Gun | -7/Zion | Archive Nuclear Pulse Thruster | -7/Zion | Archive Spear | -7/Zion | Archive Energy Well | -7/Zion | Archive Recalibrator | -7/Zion | Archive Adv. Heat Sink | -7/Zion | Archive Matter Filter | -7/Zion | Archive Imp. Shock Absorption System | -7/Zion | Archive Riot Gun | -7/Zion | Free Slug Cannon | -7/Zion | Free Enh. Flamer | -7/Zion | Free Bore Cannon | -7/Zion | Free Imp. Airjet | -6/Extension | Z-intel Imp. Cesium-ion Thruster | -6/Extension | Z-intel Mni. Assault Cannon | -6/Extension | Z-intel Prc. Assault Rifle | -6/Extension | Z-intel Cold Fusion Reactor | -6/Extension | Z-intel F-cell Engine | -6/Extension | Z-intel Cld. Airjet | -6/Extension | Z-intel Imp. Heavy Machine Gun | -6/Extension | Z-intel Cld. Aerolev Unit | -6/Hub_04(d) | Z-intel Hpw. Field Laser | -6/Hub_04(d) | Z-intel Hvy. Particle Gun | -6/Hub_04(d) | Z-intel Gui. EMP Blaster | -6/Hub_04(d) | Z-intel Multireflex Exoskeleton | -6/Hub_04(d) | Z-intel Scatter Rocket Array | -6/Hub_04(d) | Z-intel Cld. Deuterium Engine | -6/Hub_04(d) | Z-intel Exp. Targeting Computer | -6/Hub_04(d) | Z-intel Cld. Plasma Cannon | -6/Hub_04(d) | Z-intel Force Rifle | -6/Hub_04(d) | Z-intel Imp. Heavy Laser | -6/Hub_04(d) | Z-intel Prc. Grenade Launcher | -6/Hub_04(d) | Z-intel Robot Schematics ------------------ S-27 Virus | -7/Zion | Archive G-47 Trooper | -7/Zion | Archive X-77 Beamer | -7/Zion | Archive Fabricated ------------ Nothing Repaired ---------- Nothing Studied --------- Antimatter Reactor | -5/Factory | Hacked Imp. Medium Treads | -5/Factory | Hacked Gauss Cannon | -5/Factory | Hacked Alien Tech Used ----------------- None Achievements -------------- None Challenges ------------ None Game ------ Seed CentriumPiercelightScanner Manual? 0 Play Time 01:18:30 Cumulative 629.7 hours Start 2025.12.26 @ 10:35:16 End 2025.12.26 @ 11:56:37 Sessions 1 Manual Loads 0 Difficulty Rogue Special Mode None Game No. 799 Rogue 799 Adventurer 0 Explorer 0 Win Type - Total 23 Types 10/1/3/3/2/0/2/2/0/0 Lore% 96 Gallery% 92 Achievement% 80 Wizard Run 0 Options --------- Layout 0 ASCII 0 Keyboard 0 Movement Mouse Keybinds 0 Fullscreen 1 Font 24/Terminus Map View 76x50 Zoom Use 0% Tactical HUD 1 Map Filters NONE Filters NONE Steam 1 RUN: edb06635-b8a1-4e0b-b1ca-5a125b072de4